Workbook

Sheet Pasiūlymas
A2: PIRKIMO SĄLYGŲ PRIEDAS "PASIŪLYMŲ FORMA"
A4: MEDIKAMENTAI PERKAMI NE PER CPO ELEKTRONINĮ KATALOGĄ
A6: Kam: | B6: VšĮ LSMU Kauno ligoninė
A8: Data: | B8: 2022-05-04
A9: Nr.: | B9: 20220509/591915
A10: Vieta: | B10: Vilnius
A12: Tiekėjo pavadinimas / Ūkio subjektų grupės nariai: | C12: Fresenius Kabi Baltics UAB
A13: Tiekėjo kodas (-ai): | C13: 302992398
A14: Tiekėjo adresas (-ai): | C14: J. Basanavičiaus g. 26, LT-03244, Vilnius, Lietuva
A15: Tiekėjo PVM mokėtojo kodas(-ai): | C15: LT100007642217
A16: Tiekėjo / Ūkio subjektų grupės atsakingo partnerio sąskaitos numeris, banko pavadinimas ir banko kodas (-ai): | C16: FI47 8421 0710 0114 32, Danske Bank A/S Finland Branch, SWIFT/ BIC DABAFIHH
A17: Asmens atsakingo už pasiūlymą vardas, pavardė: | C17: Daina Virkšaitė
A18: Asmens atsakingo už pasiūlymą telefono numeris, el. pašto adresas: | C18: tel. 8521 93406, daina.virksaite@fresenius-kabi.com
A19: Tiekėjo / Ūkio subjektų grupės, laimėjimo atveju, pasirašančio sutartį asmens vardas, pavardė, pareigos: | C19: Baltijos valstybių regiono vadovė Violeta Bajelienė
A20: Tiekėjo / Ūkio subjektų grupės, laimėjimo atveju, už sutarties vykdymą atsakingo asmens vardas, pavardė, telefono numeris, elektroninio pašto adresas: | C20: Vaidutė Daugytė, tel. 8 525 05681, orders.baltics@fresenius-kabi.com
A21: (1) Tiekėjo / Ūkio subjektų grupės narių, (2) ūkio subjektų, kurių pajėgumais remiamasi, ir (3) jei pašalinimo pagrindai taikomi visiems subtiekėjams - subtiekėjų, kolegialaus priežiūros organo (Stebėtojų tarybos) ir (ar) kolegialaus valdymo organo (Valdybos) narių sąrašas (jei sudaryta) ir (ar) asmuo, kuriam suteikti VPĮ 46 str. 2 d. 2 p. numatyti įgaliojimai | G21: =IF((SUMPRODUCT(--(C21=""))>0), "Privaloma užpildyti, kai taikomi pašalinimo pagrindai", "") -> Privaloma užpildyti, kai taikomi pašalinimo pagrindai
A23: Tiekėjo patvirtinimai:
A24: 1. Šiuo pasiūlymu pažymime, kad sutinkame su visomi pirkimo sąlygomis, nustatytomis:
A25: 1.1. viešojo pirkimo dokumentuose
A26: 1.2. kituose pirkimo dokumentuose (jų paaiškinimuose, papildymuose).
A27: 2. Patvirtiname, kad informacija ir duomenys, pateikti pasiūlyme, yra teisingi ir apima viską, ko reikia tinkamam sutarties įvykdymui
A28: 3. Patvirtiname, kad jei pasiūlyme nenurodyti kolegialaus priežiūros/valdymo organų nariai, šie organai juridiniuose asmenyse nėra sudaryti (taikoma, kai pirkimo dokumentuose nustatyti pašalinimo pagrindai).
A29: 4. Pasiūlymas galioja iki termino, nustatyto pirkimo dokumentuose.
A30: 5. Tais atvejais, kai pagal galiojančius teisės aktus tiekėjui nereikia mokėti PVM, jis nurodo priežastis, dėl kurių PVM nemoka:
A32: 1. DALIS | B32: 1ML GERIAMŲJŲ LAŠŲ YRA VAISTINIO VALERIJONŲ ŠAKNŲ 1,2G SUKATŽOLŲ ŽOLĖS 1,2G, APYNIŲ SPURGŲ 0,8G, PIPIRMĖTĖS LAPŲ 0,8G
A34: Tiekėjo pasiūlymas:
A35: Nr. | B35: Pavadinimas | C35: Kiekis | D35: Mato vienetas | E35: Įkainis be PVM, Eur | F35: Suma be PVM, Eur | G35: Siūlomo produkto pavadinimas, dozė, kiekis pakuotėje, gamintojas. Būtina pažymėti, kuris vaistas yra vardinis
A36: 1. | B36: 1ml geriamųjų lašų yra Vaistinio valerijonų šaknų 1,2g sukatžolų žolės 1,2g, apynių spurgų 0,8g, pipirmėtės lapų 0,8g
A37: 1.1. | B37: 1ml geriamųjų lašų yra Vaistinio valerijonų šaknų 1,2g sukatžolų žolės 1,2g, apynių spurgų 0,8g, pipirmėtės lapų 0,8g | C37: 2000 | D37: ml | F37: =IF(ISBLANK(E37),"", PRODUCT(C37,E37)) -> 
E38: Suma be PVM | F38: =IF(F37="","",SUM(F37:F37)) ->  | G38: =IF(F37="","Neužpildytos visos objektų kainos","") -> Neužpildytos visos objektų kainos
E39: PVM suma
E40: Suma su PVM | F40: =IF(ISBLANK(F39), "", SUM(F38:F39)) ->  | G40: Dalies biudžetas su PVM: 556,5 Eur
A44: 2. DALIS | B44: ACETILCISTEINAS 300 MG 3 ML INJ
A46: Tiekėjo pasiūlymas:
A47: Nr. | B47: Pavadinimas | C47: Kiekis | D47: Mato vienetas | E47: Įkainis be PVM, Eur | F47: Suma be PVM, Eur | G47: Siūlomo produkto pavadinimas, dozė, kiekis pakuotėje, gamintojas. Būtina pažymėti, kuris vaistas yra vardinis
A48: 2. | B48: Acetilcisteinas 300 mg 3 ml
A49: 2.1. | B49: Acetilcisteinas 300 mg 3 ml | C49: 30 | D49: amp. | F49: =IF(ISBLANK(E49),"", PRODUCT(C49,E49)) -> 
E50: Suma be PVM | F50: =IF(F49="","",SUM(F49:F49)) ->  | G50: =IF(F49="","Neužpildytos visos objektų kainos","") -> Neužpildytos visos objektų kainos
E51: PVM suma
E52: Suma su PVM | F52: =IF(ISBLANK(F51), "", SUM(F50:F51)) ->  | G52: Dalies biudžetas su PVM: 28,35 Eur
A56: 3. DALIS | B56: ACETONUM
A58: Tiekėjo pasiūlymas:
A59: Nr. | B59: Pavadinimas | C59: Kiekis | D59: Mato vienetas | E59: Įkainis be PVM, Eur | F59: Suma be PVM, Eur | G59: Siūlomo produkto pavadinimas, dozė, kiekis pakuotėje, gamintojas. Būtina pažymėti, kuris vaistas yra vardinis
A60: 3. | B60: Acetonum
A61: 3.1. | B61: Acetonum | C61: 8 | D61: l | F61: =IF(ISBLANK(E61),"", PRODUCT(C61,E61)) -> 
E62: Suma be PVM | F62: =IF(F61="","",SUM(F61:F61)) ->  | G62: =IF(F61="","Neužpildytos visos objektų kainos","") -> Neužpildytos visos objektų kainos
E63: PVM suma
E64: Suma su PVM | F64: =IF(ISBLANK(F63), "", SUM(F62:F63)) ->  | G64: Dalies biudžetas su PVM: 105 Eur
A68: 4. DALIS | B68: ACIDUM ACETICUM
A70: Tiekėjo pasiūlymas:
A71: Nr. | B71: Pavadinimas | C71: Kiekis | D71: Mato vienetas | E71: Įkainis be PVM, Eur | F71: Suma be PVM, Eur | G71: Siūlomo produkto pavadinimas, dozė, kiekis pakuotėje, gamintojas. Būtina pažymėti, kuris vaistas yra vardinis
A72: 4. | B72: Acidum aceticum
A73: 4.1. | B73: Acidum aceticum | C73: 2 | D73: l | F73: =IF(ISBLANK(E73),"", PRODUCT(C73,E73)) -> 
E74: Suma be PVM | F74: =IF(F73="","",SUM(F73:F73)) ->  | G74: =IF(F73="","Neužpildytos visos objektų kainos","") -> Neužpildytos visos objektų kainos
E75: PVM suma
E76: Suma su PVM | F76: =IF(ISBLANK(F75), "", SUM(F74:F75)) ->  | G76: Dalies biudžetas su PVM: 15,75 Eur
A80: 5. DALIS | B80: ACIDUM CITRICUM
A82: Tiekėjo pasiūlymas:
A83: Nr. | B83: Pavadinimas | C83: Kiekis | D83: Mato vienetas | E83: Įkainis be PVM, Eur | F83: Suma be PVM, Eur | G83: Siūlomo produkto pavadinimas, dozė, kiekis pakuotėje, gamintojas. Būtina pažymėti, kuris vaistas yra vardinis
A84: 5. | B84: Acidum citricum
A85: 5.1. | B85: Acidum citricum | C85: 2 | D85: kg | F85: =IF(ISBLANK(E85),"", PRODUCT(C85,E85)) -> 
E86: Suma be PVM | F86: =IF(F85="","",SUM(F85:F85)) ->  | G86: =IF(F85="","Neužpildytos visos objektų kainos","") -> Neužpildytos visos objektų kainos
E87: PVM suma
E88: Suma su PVM | F88: =IF(ISBLANK(F87), "", SUM(F86:F87)) ->  | G88: Dalies biudžetas su PVM: 26,25 Eur
A92: 6. DALIS | B92: ACIDUM FOLICUM
A94: Tiekėjo pasiūlymas:
A95: Nr. | B95: Pavadinimas | C95: Kiekis | D95: Mato vienetas | E95: Įkainis be PVM, Eur | F95: Suma be PVM, Eur | G95: Siūlomo produkto pavadinimas, dozė, kiekis pakuotėje, gamintojas. Būtina pažymėti, kuris vaistas yra vardinis
A96: 6. | B96: Acidum folicum
A97: 6.1. | B97: Acidum folicum | C97: 50 | D97: g | F97: =IF(ISBLANK(E97),"", PRODUCT(C97,E97)) -> 
E98: Suma be PVM | F98: =IF(F97="","",SUM(F97:F97)) ->  | G98: =IF(F97="","Neužpildytos visos objektų kainos","") -> Neužpildytos visos objektų kainos
E99: PVM suma
E100: Suma su PVM | F100: =IF(ISBLANK(F99), "", SUM(F98:F99)) ->  | G100: Dalies biudžetas su PVM: 231 Eur
A104: 7. DALIS | B104: ACIDUM FOLICUM 400MCG
A106: Tiekėjo pasiūlymas:
A107: Nr. | B107: Pavadinimas | C107: Kiekis | D107: Mato vienetas | E107: Įkainis be PVM, Eur | F107: Suma be PVM, Eur | G107: Siūlomo produkto pavadinimas, dozė, kiekis pakuotėje, gamintojas. Būtina pažymėti, kuris vaistas yra vardinis
A108: 7. | B108: Acidum folicum 400mcg
A109: 7.1. | B109: Acidum folicum 400mcg | C109: 3300 | D109: tab. | F109: =IF(ISBLANK(E109),"", PRODUCT(C109,E109)) -> 
E110: Suma be PVM | F110: =IF(F109="","",SUM(F109:F109)) ->  | G110: =IF(F109="","Neužpildytos visos objektų kainos","") -> Neužpildytos visos objektų kainos
E111: PVM suma
E112: Suma su PVM | F112: =IF(ISBLANK(F111), "", SUM(F110:F111)) ->  | G112: Dalies biudžetas su PVM: 187,69 Eur
A116: 8. DALIS | B116: ACIDUM FOLICUM 800MCG
A118: Tiekėjo pasiūlymas:
A119: Nr. | B119: Pavadinimas | C119: Kiekis | D119: Mato vienetas | E119: Įkainis be PVM, Eur | F119: Suma be PVM, Eur | G119: Siūlomo produkto pavadinimas, dozė, kiekis pakuotėje, gamintojas. Būtina pažymėti, kuris vaistas yra vardinis
A120: 8. | B120: Acidum folicum 800mcg
A121: 8.1. | B121: Acidum folicum 800mcg | C121: 600 | D121: tab. | F121: =IF(ISBLANK(E121),"", PRODUCT(C121,E121)) -> 
E122: Suma be PVM | F122: =IF(F121="","",SUM(F121:F121)) ->  | G122: =IF(F121="","Neužpildytos visos objektų kainos","") -> Neužpildytos visos objektų kainos
E123: PVM suma
E124: Suma su PVM | F124: =IF(ISBLANK(F123), "", SUM(F122:F123)) ->  | G124: Dalies biudžetas su PVM: 81,9 Eur
A128: 9. DALIS | B128: ACIDUM SALICYLICUM
A130: Tiekėjo pasiūlymas:
A131: Nr. | B131: Pavadinimas | C131: Kiekis | D131: Mato vienetas | E131: Įkainis be PVM, Eur | F131: Suma be PVM, Eur | G131: Siūlomo produkto pavadinimas, dozė, kiekis pakuotėje, gamintojas. Būtina pažymėti, kuris vaistas yra vardinis
A132: 9. | B132: Acidum salicylicum
A133: 9.1. | B133: Acidum salicylicum | C133: 3 | D133: kg | F133: =IF(ISBLANK(E133),"", PRODUCT(C133,E133)) -> 
E134: Suma be PVM | F134: =IF(F133="","",SUM(F133:F133)) ->  | G134: =IF(F133="","Neužpildytos visos objektų kainos","") -> Neužpildytos visos objektų kainos
E135: PVM suma
E136: Suma su PVM | F136: =IF(ISBLANK(F135), "", SUM(F134:F135)) ->  | G136: Dalies biudžetas su PVM: 94,5 Eur
A140: 10. DALIS | B140: ADATĖLĖS PLASTIKINĖS ODOS DŪRIO MĖGINIAMS ATLIKTI
A142: Tiekėjo pasiūlymas:
A143: Nr. | B143: Pavadinimas | C143: Kiekis | D143: Mato vienetas | E143: Įkainis be PVM, Eur | F143: Suma be PVM, Eur | G143: Siūlomo produkto pavadinimas, dozė, kiekis pakuotėje, gamintojas. Būtina pažymėti, kuris vaistas yra vardinis
A144: 10. | B144: Adatėlės plastikinės odos dūrio mėginiams atlikti
A145: 10.1. | B145: Adatėlės plastikinės odos dūrio mėginiams atlikti | C145: 8000 | D145: vnt. | F145: =IF(ISBLANK(E145),"", PRODUCT(C145,E145)) -> 
E146: Suma be PVM | F146: =IF(F145="","",SUM(F145:F145)) ->  | G146: =IF(F145="","Neužpildytos visos objektų kainos","") -> Neužpildytos visos objektų kainos
E147: PVM suma
E148: Suma su PVM | F148: =IF(ISBLANK(F147), "", SUM(F146:F147)) ->  | G148: Dalies biudžetas su PVM: 1680 Eur
A152: 11. DALIS | B152: AKTYVINTA ANGLIS 200 MG
A154: Tiekėjo pasiūlymas:
A155: Nr. | B155: Pavadinimas | C155: Kiekis | D155: Mato vienetas | E155: Įkainis be PVM, Eur | F155: Suma be PVM, Eur | G155: Siūlomo produkto pavadinimas, dozė, kiekis pakuotėje, gamintojas. Būtina pažymėti, kuris vaistas yra vardinis
A156: 11. | B156: Aktyvinta anglis 200 mg
A157: 11.1. | B157: Aktyvinta anglis 200 mg | C157: 1500 | D157: tab./kaps. | F157: =IF(ISBLANK(E157),"", PRODUCT(C157,E157)) -> 
E158: Suma be PVM | F158: =IF(F157="","",SUM(F157:F157)) ->  | G158: =IF(F157="","Neužpildytos visos objektų kainos","") -> Neužpildytos visos objektų kainos
E159: PVM suma
E160: Suma su PVM | F160: =IF(ISBLANK(F159), "", SUM(F158:F159)) ->  | G160: Dalies biudžetas su PVM: 236,25 Eur
A164: 12. DALIS | B164: AKTYVINTA ANGLIS MILTELIAIS PO 50 - 61,5 G
A166: Tiekėjo pasiūlymas:
A167: Nr. | B167: Pavadinimas | C167: Kiekis | D167: Mato vienetas | E167: Įkainis be PVM, Eur | F167: Suma be PVM, Eur | G167: Siūlomo produkto pavadinimas, dozė, kiekis pakuotėje, gamintojas. Būtina pažymėti, kuris vaistas yra vardinis
A168: 12. | B168: Aktyvinta anglis milteliais po 50 - 61,5 g
A169: 12.1. | B169: Aktyvinta anglis milteliais po 50 - 61,5g | C169: 10 | D169: įpak. | F169: =IF(ISBLANK(E169),"", PRODUCT(C169,E169)) -> 
E170: Suma be PVM | F170: =IF(F169="","",SUM(F169:F169)) ->  | G170: =IF(F169="","Neužpildytos visos objektų kainos","") -> Neužpildytos visos objektų kainos
E171: PVM suma
E172: Suma su PVM | F172: =IF(ISBLANK(F171), "", SUM(F170:F171)) ->  | G172: Dalies biudžetas su PVM: 262,5 Eur
A176: 13. DALIS | B176: AKTYVUOTAS PROTROMBINO KOAGULIACIJOS KOMPLEKSAS 1000 TV
A178: Tiekėjo pasiūlymas:
A179: Nr. | B179: Pavadinimas | C179: Kiekis | D179: Mato vienetas | E179: Įkainis be PVM, Eur | F179: Suma be PVM, Eur | G179: Siūlomo produkto pavadinimas, dozė, kiekis pakuotėje, gamintojas. Būtina pažymėti, kuris vaistas yra vardinis
A180: 13. | B180: Aktyvuotas protrombino koaguliacijos kompleksas 1000 TV
A181: 13.1. | B181: Aktyvuotas protrombino koaguliacijos kompleksas 1000 TV | C181: 3 | D181: but./amp. | F181: =IF(ISBLANK(E181),"", PRODUCT(C181,E181)) -> 
E182: Suma be PVM | F182: =IF(F181="","",SUM(F181:F181)) ->  | G182: =IF(F181="","Neužpildytos visos objektų kainos","") -> Neužpildytos visos objektų kainos
E183: PVM suma
E184: Suma su PVM | F184: =IF(ISBLANK(F183), "", SUM(F182:F183)) ->  | G184: Dalies biudžetas su PVM: 3150 Eur
A188: 14. DALIS | B188: ALBENDAZOLUM 400MG
A190: Tiekėjo pasiūlymas:
A191: Nr. | B191: Pavadinimas | C191: Kiekis | D191: Mato vienetas | E191: Įkainis be PVM, Eur | F191: Suma be PVM, Eur | G191: Siūlomo produkto pavadinimas, dozė, kiekis pakuotėje, gamintojas. Būtina pažymėti, kuris vaistas yra vardinis
A192: 14. | B192: Albendazolum 400mg
A193: 14.1. | B193: Albendazolum 400mg | C193: 120 | D193: tab. | F193: =IF(ISBLANK(E193),"", PRODUCT(C193,E193)) -> 
E194: Suma be PVM | F194: =IF(F193="","",SUM(F193:F193)) ->  | G194: =IF(F193="","Neužpildytos visos objektų kainos","") -> Neužpildytos visos objektų kainos
E195: PVM suma
E196: Suma su PVM | F196: =IF(ISBLANK(F195), "", SUM(F194:F195)) ->  | G196: Dalies biudžetas su PVM: 262,5 Eur
A200: 15. DALIS | B200: ALFA LIPO RŪGŠTIS 600 MG/50 ML
A202: Tiekėjo pasiūlymas:
A203: Nr. | B203: Pavadinimas | C203: Kiekis | D203: Mato vienetas | E203: Įkainis be PVM, Eur | F203: Suma be PVM, Eur | G203: Siūlomo produkto pavadinimas, dozė, kiekis pakuotėje, gamintojas. Būtina pažymėti, kuris vaistas yra vardinis
A204: 15. | B204: Alfa lipo rūgštis 600 mg/50 ml
A205: 15.1. | B205: Alfa lipo rūgštis 600 mg/50 ml | C205: 80 | D205: fl. | F205: =IF(ISBLANK(E205),"", PRODUCT(C205,E205)) -> 
E206: Suma be PVM | F206: =IF(F205="","",SUM(F205:F205)) ->  | G206: =IF(F205="","Neužpildytos visos objektų kainos","") -> Neužpildytos visos objektų kainos
E207: PVM suma
E208: Suma su PVM | F208: =IF(ISBLANK(F207), "", SUM(F206:F207)) ->  | G208: Dalies biudžetas su PVM: 441 Eur
A212: 16. DALIS | B212: ALOPURINOLIS 300 MG
A214: Tiekėjo pasiūlymas:
A215: Nr. | B215: Pavadinimas | C215: Kiekis | D215: Mato vienetas | E215: Įkainis be PVM, Eur | F215: Suma be PVM, Eur | G215: Siūlomo produkto pavadinimas, dozė, kiekis pakuotėje, gamintojas. Būtina pažymėti, kuris vaistas yra vardinis
A216: 16. | B216: Alopurinolis 300 mg
A217: 16.1. | B217: Alopurinolis 300 mg | C217: 5000 | D217: tab. | F217: =IF(ISBLANK(E217),"", PRODUCT(C217,E217)) -> 
E218: Suma be PVM | F218: =IF(F217="","",SUM(F217:F217)) ->  | G218: =IF(F217="","Neužpildytos visos objektų kainos","") -> Neužpildytos visos objektų kainos
E219: PVM suma
E220: Suma su PVM | F220: =IF(ISBLANK(F219), "", SUM(F218:F219)) ->  | G220: Dalies biudžetas su PVM: 483 Eur
A224: 17. DALIS | B224: AMFOTERICINAS B LIPOSOMINIS 50MG
A226: Tiekėjo pasiūlymas:
A227: Nr. | B227: Pavadinimas | C227: Kiekis | D227: Mato vienetas | E227: Įkainis be PVM, Eur | F227: Suma be PVM, Eur | G227: Siūlomo produkto pavadinimas, dozė, kiekis pakuotėje, gamintojas. Būtina pažymėti, kuris vaistas yra vardinis
A228: 17. | B228: Amfotericinas B liposominis 50mg
A229: 17.1. | B229: Amfotericinas B liposominis 50mg | C229: 10 | D229: amp. | F229: =IF(ISBLANK(E229),"", PRODUCT(C229,E229)) -> 
E230: Suma be PVM | F230: =IF(F229="","",SUM(F229:F229)) ->  | G230: =IF(F229="","Neužpildytos visos objektų kainos","") -> Neužpildytos visos objektų kainos
E231: PVM suma
E232: Suma su PVM | F232: =IF(ISBLANK(F231), "", SUM(F230:F231)) ->  | G232: Dalies biudžetas su PVM: 5460 Eur
A236: 18. DALIS | B236: AMIL NITRITAS 0.3 ML
A238: Tiekėjo pasiūlymas:
A239: Nr. | B239: Pavadinimas | C239: Kiekis | D239: Mato vienetas | E239: Įkainis be PVM, Eur | F239: Suma be PVM, Eur | G239: Siūlomo produkto pavadinimas, dozė, kiekis pakuotėje, gamintojas. Būtina pažymėti, kuris vaistas yra vardinis
A240: 18. | B240: Amil Nitritas 0.3 ml
A241: 18.1. | B241: Amil Nitritas 0.3 ml | C241: 12 | D241: amp. | F241: =IF(ISBLANK(E241),"", PRODUCT(C241,E241)) -> 
E242: Suma be PVM | F242: =IF(F241="","",SUM(F241:F241)) ->  | G242: =IF(F241="","Neužpildytos visos objektų kainos","") -> Neužpildytos visos objektų kainos
E243: PVM suma
E244: Suma su PVM | F244: =IF(ISBLANK(F243), "", SUM(F242:F243)) ->  | G244: Dalies biudžetas su PVM: 189 Eur
A248: 19. DALIS | B248: MIŠINYS PARENTERINIAM MAITINIMUI (RIEBALŲ EMULSIJA SU ILGOS IR VIDUTINĖS GRANDINĖS TRIGLICERIDAIS, OMEGA-3 RIEBALŲ RŪGŠTIMIS ARBA JŲ TRIGLICERIDAIS + AMINORŪGŠČIŲ, ELEKTROLITŲ IR GLIUKOZĖS TIRPALAI), ENERG. VERTĖ 700-800 KCAL/1000ML TRIJŲ KAMERŲ MAIŠE, LEISTI Į PERIFERINĘ VENĄ, 1900 - 2000 ML MAIŠAS
A250: Tiekėjo pasiūlymas:
A251: Nr. | B251: Pavadinimas | C251: Kiekis | D251: Mato vienetas | E251: Įkainis be PVM, Eur | F251: Suma be PVM, Eur | G251: Siūlomo produkto pavadinimas, dozė, kiekis pakuotėje, gamintojas. Būtina pažymėti, kuris vaistas yra vardinis
A252: 19. | B252: Mišinys parenteriniam maitinimui (riebalų emulsija su ilgos ir vidutinės grandinės trigliceridais, omega-3 riebalų rūgštimis arba jų trigliceridais + aminorūgščių, elektrolitų ir gliukozės tirpalai), energ. vertė 700-800 kcal/1000ml trijų kamerų maiše, leisti į periferinę veną, 1900 - 2000 ml maišas
A253: 19.1. | B253: Mišinys parenteriniam maitinimui (riebalų emulsija su ilgos ir vidutinės grandinės trigliceridais, omega-3 riebalų rūgštimis arba jų trigliceridais + aminorūgščių, elektrolitų ir gliukozės tirpalai), energ. vertė 700-800 kcal/1000ml trijų kamerų maiše, leisti į periferinę veną, 1900 - 2000 ml maišas | C253: 88 | D253: vnt. | E253: 37.1 | F253: =IF(ISBLANK(E253),"", PRODUCT(C253,E253)) -> 3264.8 | G253: SmofKabiven Peripheral infuzinė emulsija 1904 ml, N4, Fresenius Kabi AB, Švedija
E254: Suma be PVM | F254: =IF(F253="","",SUM(F253:F253)) -> 3264.8 | G254: =IF(F253="","Neužpildytos visos objektų kainos","") -> 
E255: PVM suma | F255: =F254*0.05 -> 163.24
E256: Suma su PVM | F256: =IF(ISBLANK(F255), "", SUM(F254:F255)) -> 3428.04 | G256: Dalies biudžetas su PVM: 4620 Eur
A260: 20. DALIS | B260: AMIODARONAS 50MG/ML 3ML
A262: Tiekėjo pasiūlymas:
A263: Nr. | B263: Pavadinimas | C263: Kiekis | D263: Mato vienetas | E263: Įkainis be PVM, Eur | F263: Suma be PVM, Eur | G263: Siūlomo produkto pavadinimas, dozė, kiekis pakuotėje, gamintojas. Būtina pažymėti, kuris vaistas yra vardinis
A264: 20. | B264: Amiodaronas 50mg/ml 3ml
A265: 20.1. | B265: Amiodaronas 50mg/ml 3ml | C265: 5000 | D265: amp. | F265: =IF(ISBLANK(E265),"", PRODUCT(C265,E265)) -> 
E266: Suma be PVM | F266: =IF(F265="","",SUM(F265:F265)) ->  | G266: =IF(F265="","Neužpildytos visos objektų kainos","") -> Neužpildytos visos objektų kainos
E267: PVM suma
E268: Suma su PVM | F268: =IF(ISBLANK(F267), "", SUM(F266:F267)) ->  | G268: Dalies biudžetas su PVM: 15750 Eur
A272: 21. DALIS | B272: AMPICILINAS 1000MG + SULBAKTAMAS 500MG
A274: Tiekėjo pasiūlymas:
A275: Nr. | B275: Pavadinimas | C275: Kiekis | D275: Mato vienetas | E275: Įkainis be PVM, Eur | F275: Suma be PVM, Eur | G275: Siūlomo produkto pavadinimas, dozė, kiekis pakuotėje, gamintojas. Būtina pažymėti, kuris vaistas yra vardinis
A276: 21. | B276: Ampicilinas 1000mg + Sulbaktamas 500mg
A277: 21.1. | B277: Ampicilinas 1000mg + Sulbaktamas 500mg | C277: 5000 | D277: fl. | F277: =IF(ISBLANK(E277),"", PRODUCT(C277,E277)) -> 
E278: Suma be PVM | F278: =IF(F277="","",SUM(F277:F277)) ->  | G278: =IF(F277="","Neužpildytos visos objektų kainos","") -> Neužpildytos visos objektų kainos
E279: PVM suma
E280: Suma su PVM | F280: =IF(ISBLANK(F279), "", SUM(F278:F279)) ->  | G280: Dalies biudžetas su PVM: 9450 Eur
A284: 22. DALIS | B284: AMPICILINAS 2000MG + SULBAKTAMAS 1000 MG
A286: Tiekėjo pasiūlymas:
A287: Nr. | B287: Pavadinimas | C287: Kiekis | D287: Mato vienetas | E287: Įkainis be PVM, Eur | F287: Suma be PVM, Eur | G287: Siūlomo produkto pavadinimas, dozė, kiekis pakuotėje, gamintojas. Būtina pažymėti, kuris vaistas yra vardinis
A288: 22. | B288: Ampicilinas 2000mg + Sulbaktamas 1000 mg
A289: 22.1. | B289: Ampicilinas 2000mg + Sulbaktamas 1000 mg | C289: 3000 | D289: fl. | F289: =IF(ISBLANK(E289),"", PRODUCT(C289,E289)) -> 
E290: Suma be PVM | F290: =IF(F289="","",SUM(F289:F289)) ->  | G290: =IF(F289="","Neužpildytos visos objektų kainos","") -> Neužpildytos visos objektų kainos
E291: PVM suma
E292: Suma su PVM | F292: =IF(ISBLANK(F291), "", SUM(F290:F291)) ->  | G292: Dalies biudžetas su PVM: 5670 Eur
... 2074 more rows

Sheet Subtiekėjai ir priedai
A2: Ūkio subjektai (įskaitant kvazisubtiekėjus - fiziniai asmenys, kuriuos ketinama įdarbinti pirkimo laimėjimo atveju), kurių pajėgumais tiekėjas remiasi, kad atitiktų keliamus kvalifikacijos reikalavimus:
A5: Pavadinimas* | C5: Kodas, adresas | F5: Perduodami įsipareigojimai | I5: Perduodamų įsipareigojimų dalis nuo visos pirkimo sutarties (Eur arba %) | K5: Kval. Reikalavimo Nr.
A10: Subtiekėjams / subteikėjams / subrangovams numatomos perduoti veiklos (privaloma nurodyti) ir šių ūkio subjektų pavadinimai (jei žinomi):
A12: Pavadinimas | C12: Kodas, adresas | F12: Perduodama veikla* | I12: Perduodamos veiklos dalis nuo visos pirkimo sutarties (Eur arba %)
A19: Kartu su pasiūlymu pateikiami šie dokumentai:
A21: Nr. | B21: Dokumento pavadinimas | H21: Dokumentas yra konfidencialus? Taip/Ne
A22: 1 | B22: Jungtinės veiklos kopija (jei taikoma)
A23: 2 | B23: Europos bendrasis viešųjų pirkimų dokumentas | H23: Taip
A24: 3 | B24: Subtiekimo sutartis, ketinimų protokolas, preliminarios sutartys ar kiti dokumentai, patvirtinantys, kad laimėjus pirkimą tiekėjui bus prieinami kitų ūkio subjektų ištekliai (jei pasitelkiami kvalifikacijos atitikimui)
A25: 4 | B25: ĮG2022.01_02 Igaliojimas konkursams Daina Virksaite | H25: Taip
A26: 5 | B26: Irigaciniai tirpalai_katalogas | H26: Ne
A27: 6 | B27: Natrio Chloridas irigacijai 500ml | H27: Ne
A28: 7 | B28: Natrio Chloridas irigacijai 3000ml naudojimo instrukcija Natrio Chloridas irigacijai 3000ml aprasymas | H28: Ne
A30: Pasiūlyme nurodyta Prekės kaina, išskyrus jos sudedamąsias dalis, subtiekėjai, taip pat kita informacija, kuri teisės aktų nustatyta tvarka turi būti skelbiama arba kitokiu būdu viešai prieinama visuomenei, nėra laikoma konfidencialia informacija. Konfidencialią informaciją sudaro, visų pirma, komercinė (gamybinė) paslaptis ir konfidencialieji pasiūlymų aspektai. Informacija, kurią viešai skelbti įpareigoja Lietuvos Respublikos įstatymai, negali būti tiekėjo nurodoma kaip konfidenciali, todėl, tiekėjui nurodžius tokią informaciją kaip konfidencialią, perkančioji organizacija turi teisę ją skelbti. Jei tiekėjas nenurodo konfidencialios informacijos, laikoma, kad konfidencialios informacijos tiekėjo pasiūlyme nėra. Vadovaujantis Informacijos viešinimo Centrinėje viešųjų pirkimų informacinėje sistemoje tvarkos aprašu, patvirtintu Viešųjų pirkimų tarnybos direktoriaus 2017 m. birželio 19 d. įsakymu Nr. 1S-91 „Dėl Informacijos viešinimo Centrinėje viešųjų pirkimų informacinėje sistemoje tvarkos aprašo patvirtinimo“, perkančioji organizacija laimėjusio dalyvio pasiūlymą, išskyrus informaciją, kurią tiekėjas nurodė kaip konfidencialią, paskelbs CVP IS.
A33: Tiekėjo arba jo įgalioto asmens pareigų pavadinimas: | E33: Komercijos vadovė
A35: Pasirašančio asmens vardas ir pavardė: | E35: Daina Virkšaitė
A82: 6874-2 2022-04-01 21:15:47
